[Event "Live Chess"]
[Site "Chess.com"]
[Date "2023.05.21"]
[Round "-"]
[White "onemoretime1975"]
[Black "jumush"]
[Result "1/2-1/2"]
[WhiteElo "1873"]
[BlackElo "1751"]
[TimeControl "300"]
[EndTime "5:51:43 PDT"]
[Termination "Game drawn by repetition"]

1. e4 {[%clk 0:04:52.2]} 1... d5 {[%clk 0:04:58.1]} 2. exd5 {[%clk 0:04:50.7]}
2... Qxd5 {[%clk 0:04:56.2]} 3. d4 {[%clk 0:04:48.6]} 3... Nc6 {[%clk
0:04:54.4]} 4. c3 {[%clk 0:04:46.4]} 4... e5 {[%clk 0:04:52]} 5. Be3 {[%clk
0:04:41.8]} 5... exd4 {[%clk 0:04:50]} 6. cxd4 {[%clk 0:04:39.1]} 6... Bb4+
{[%clk 0:04:47.9]} 7. Nc3 {[%clk 0:04:37.4]} 7... Nf6 {[%clk 0:04:45.3]} 8. a3
{[%clk 0:04:35.1]} 8... Bxc3+ {[%clk 0:04:43.1]} 9. bxc3 {[%clk 0:04:33.9]} 9...
Bg4 {[%clk 0:04:41.4]} 10. f3 {[%clk 0:04:24.7]} 10... Qe6 {[%clk 0:04:31.2]}
11. Qe2 {[%clk 0:04:18.8]} 11... Nd5 {[%clk 0:04:27.1]} 12. Bd2 {[%clk
0:04:14.4]} 12... Bf5 {[%clk 0:04:23.9]} 13. Qxe6+ {[%clk 0:04:11.9]} 13... Bxe6
{[%clk 0:04:22]} 14. c4 {[%clk 0:04:06.6]} 14... Nb6 {[%clk 0:04:11.5]} 15. d5
{[%clk 0:04:05.1]} 15... Nd4 {[%clk 0:04:09.9]} 16. Kd1 {[%clk 0:03:48.8]} 16...
Bf5 {[%clk 0:04:07.4]} 17. Bc3 {[%clk 0:03:39]} 17... Nc2 {[%clk 0:04:01.6]} 18.
Ra2 {[%clk 0:03:32.7]} 18... Ne3+ {[%clk 0:03:59.7]} 19. Ke2 {[%clk 0:03:31.6]}
19... Nxf1 {[%clk 0:03:58]} 20. Kxf1 {[%clk 0:03:30.5]} 20... O-O {[%clk
0:03:56.2]} 21. g4 {[%clk 0:03:26]} 21... Bd3+ {[%clk 0:03:54.1]} 22. Kf2 {[%clk
0:03:22.5]} 22... Bxc4 {[%clk 0:03:52.4]} 23. Rd2 {[%clk 0:03:19.5]} 23... Bxd5
{[%clk 0:03:50.7]} 24. Ne2 {[%clk 0:03:17.6]} 24... Bc6 {[%clk 0:03:49]} 25. Nf4
{[%clk 0:03:14.9]} 25... Rfd8 {[%clk 0:03:46.8]} 26. Rhd1 {[%clk 0:03:11.4]}
26... Rxd2+ {[%clk 0:03:43.2]} 27. Rxd2 {[%clk 0:03:10.2]} 27... f6 {[%clk
0:03:30.5]} 28. Nh5 {[%clk 0:03:03.7]} 28... Kf7 {[%clk 0:03:28.3]} 29. g5
{[%clk 0:03:01.6]} 29... fxg5 {[%clk 0:03:25.3]} 30. Nxg7 {[%clk 0:02:59]} 30...
Nd5 {[%clk 0:03:21.8]} 31. Ba1 {[%clk 0:02:54]} 31... h5 {[%clk 0:03:15.9]} 32.
Nf5 {[%clk 0:02:47.8]} 32... Kg6 {[%clk 0:03:11.7]} 33. Nd4 {[%clk 0:02:42.9]}
33... Rf8 {[%clk 0:03:03.6]} 34. Nxc6 {[%clk 0:02:38.5]} 34... bxc6 {[%clk
0:03:01.9]} 35. Rc2 {[%clk 0:02:37.4]} 35... Ne7 {[%clk 0:02:57.3]} 36. Be5
{[%clk 0:02:32.2]} 36... g4 {[%clk 0:02:53.2]} 37. f4 {[%clk 0:02:30.8]} 37...
Nd5 {[%clk 0:02:49.7]} 38. Rxc6+ {[%clk 0:02:28.2]} 38... Kf5 {[%clk 0:02:47.7]}
39. Rc5 {[%clk 0:02:14.2]} 39... Ke4 {[%clk 0:02:45.1]} 40. Rc4+ {[%clk
0:02:07.1]} 40... Kf5 {[%clk 0:02:43.3]} 41. Rc5 {[%clk 0:02:06.1]} 41... Ke4
{[%clk 0:02:40.8]} 42. Rc4+ {[%clk 0:02:05.1]} 42... Kf5 {[%clk 0:02:39.4]} 43.
Rc5 {[%clk 0:02:04.2]} 1/2-1/2

[Event "Live Chess"]
[Site "Chess.com"]
[Date "2023.05.21"]
[Round "-"]
[White "tpm07"]
[Black "Brooms1989"]
[Result "1-0"]
[WhiteElo "1942"]
[BlackElo "1149"]
[TimeControl "300"]
[EndTime "5:51:44 PDT"]
[Termination "tpm07 won by resignation"]

1. e4 {[%clk 0:04:58.4]} 1... e5 {[%clk 0:04:59.5]} 2. Nf3 {[%clk 0:04:56]} 2...
Nc6 {[%clk 0:04:58.5]} 3. Bb5 {[%clk 0:04:55.2]} 3... a6 {[%clk 0:04:57.7]} 4.
Ba4 {[%clk 0:04:54.3]} 4... Nf6 {[%clk 0:04:55.9]} 5. O-O {[%clk 0:04:50.9]}
5... Bc5 {[%clk 0:04:55.3]} 6. Nxe5 {[%clk 0:04:46.9]} 6... Nxe5 {[%clk
0:04:51.7]} 7. d4 {[%clk 0:04:45.5]} 7... Bb6 {[%clk 0:04:41.1]} 8. dxe5 {[%clk
0:04:36.5]} 8... Nxe4 {[%clk 0:04:40]} 9. Qg4 {[%clk 0:04:30.6]} 9... Bxf2+
{[%clk 0:04:29.5]} 10. Rxf2 {[%clk 0:04:24.2]} 10... Nxf2 {[%clk 0:04:29.4]} 11.
Qxg7 {[%clk 0:04:09.1]} 11... Rf8 {[%clk 0:04:18.6]} 12. Bh6 {[%clk 0:04:01.6]}
12... Qe7 {[%clk 0:04:11.9]} 13. Qxf8+ {[%clk 0:03:59.3]} 13... Qxf8 {[%clk
0:04:09.9]} 14. Bxf8 {[%clk 0:03:58.4]} 14... Kxf8 {[%clk 0:04:09.8]} 15. Kxf2
{[%clk 0:03:57.1]} 15... b5 {[%clk 0:04:05.6]} 16. Bb3 {[%clk 0:03:55.9]} 16...
c5 {[%clk 0:04:04.8]} 17. Bd5 {[%clk 0:03:53.8]} 17... Rb8 {[%clk 0:04:03.4]}
18. Nc3 {[%clk 0:03:51.9]} 18... Bb7 {[%clk 0:04:02.8]} 19. Bxb7 {[%clk
0:03:50.3]} 19... Rxb7 {[%clk 0:04:02.7]} 20. Rd1 {[%clk 0:03:48.4]} 20... Ke7
{[%clk 0:04:01.6]} 21. Rd6 {[%clk 0:03:41.5]} 21... Ra7 {[%clk 0:03:55.5]} 22.
Nd5+ {[%clk 0:03:36.9]} 22... Ke8 {[%clk 0:03:52.4]} 23. Rxa6 {[%clk 0:03:29.6]}
1-0

[Event "Live Chess"]
[Site "Chess.com"]
[Date "2023.05.21"]
[Round "-"]
[White "Duke_of_Bebington"]
[Black "EdenHazard8"]
[Result "0-1"]
[WhiteElo "1567"]
[BlackElo "1940"]
[TimeControl "300"]
[EndTime "5:51:44 PDT"]
[Termination "EdenHazard8 won by resignation"]

1. e4 {[%clk 0:04:58.7]} 1... c6 {[%clk 0:04:58.2]} 2. d4 {[%clk 0:04:57.3]}
2... d5 {[%clk 0:04:58.1]} 3. Nc3 {[%clk 0:04:56.6]} 3... dxe4 {[%clk
0:04:57.2]} 4. Nxe4 {[%clk 0:04:55.6]} 4... Nf6 {[%clk 0:04:57.1]} 5. Nxf6+
{[%clk 0:04:54.6]} 5... exf6 {[%clk 0:04:57]} 6. Bd3 {[%clk 0:04:53.6]} 6... Bd6
{[%clk 0:04:56.9]} 7. Nf3 {[%clk 0:04:49]} 7... O-O {[%clk 0:04:56.8]} 8. O-O
{[%clk 0:04:46.7]} 8... Re8 {[%clk 0:04:56.7]} 9. Be3 {[%clk 0:04:45.8]} 9...
Nd7 {[%clk 0:04:55.2]} 10. Qd2 {[%clk 0:04:45.1]} 10... Nf8 {[%clk 0:04:54.1]}
11. h4 {[%clk 0:04:44.3]} 11... Bc7 {[%clk 0:04:53.4]} 12. h5 {[%clk 0:04:40.8]}
12... Qd6 {[%clk 0:04:51.9]} 13. g3 {[%clk 0:04:15.9]} 13... Bg4 {[%clk
0:04:49.7]} 14. Nh4 {[%clk 0:04:03.4]} 14... Bxh5 {[%clk 0:04:44.6]} 15. Rae1
{[%clk 0:04:01.1]} 15... Bg6 {[%clk 0:04:42.7]} 16. Bxg6 {[%clk 0:03:56]} 16...
hxg6 {[%clk 0:04:42.6]} 17. Bf4 {[%clk 0:03:49.8]} 17... Qd7 {[%clk 0:04:40.8]}
18. Rxe8 {[%clk 0:03:42.7]} 18... Rxe8 {[%clk 0:04:38.8]} 19. Bxc7 {[%clk
0:03:40.5]} 19... Qxc7 {[%clk 0:04:37.6]} 20. Re1 {[%clk 0:03:33.8]} 20... Rxe1+
{[%clk 0:04:35.3]} 21. Qxe1 {[%clk 0:03:33.7]} 21... Qb6 {[%clk 0:04:32.5]} 22.
Qc3 {[%clk 0:03:28.6]} 22... Ne6 {[%clk 0:04:31]} 23. Nf3 {[%clk 0:03:27.6]}
23... Qb5 {[%clk 0:04:28]} 24. Nd2 {[%clk 0:03:12.1]} 24... Qd5 {[%clk
0:04:25.3]} 25. b3 {[%clk 0:03:09.8]} 25... Nxd4 {[%clk 0:04:21.2]} 0-1

[Event "Live Chess"]
[Site "Chess.com"]
[Date "2023.05.21"]
[Round "-"]
[White "LiamClery2020"]
[Black "viktorskliarov"]
[Result "0-1"]
[WhiteElo "1982"]
[BlackElo "2649"]
[TimeControl "300"]
[EndTime "5:51:45 PDT"]
[Termination "viktorskliarov won by resignation"]

1. e4 {[%clk 0:04:59.6]} 1... c6 {[%clk 0:04:55.2]} 2. d4 {[%clk 0:04:57.3]}
2... d5 {[%clk 0:04:49.6]} 3. Nc3 {[%clk 0:04:55.9]} 3... dxe4 {[%clk 0:04:48]}
4. Nxe4 {[%clk 0:04:55.8]} 4... Nf6 {[%clk 0:04:47.6]} 5. Nxf6+ {[%clk
0:04:54.3]} 5... gxf6 {[%clk 0:04:45.8]} 6. Nf3 {[%clk 0:04:53.5]} 6... Bg4
{[%clk 0:04:43.3]} 7. c3 {[%clk 0:04:51.6]} 7... e6 {[%clk 0:04:40.9]} 8. Be2
{[%clk 0:04:49.5]} 8... Bd6 {[%clk 0:04:39.6]} 9. Be3 {[%clk 0:04:48.2]} 9...
Qc7 {[%clk 0:04:35.3]} 10. Qb3 {[%clk 0:04:46.8]} 10... Nd7 {[%clk 0:04:31.9]}
11. h3 {[%clk 0:04:45.2]} 11... Bh5 {[%clk 0:04:22.1]} 12. Ne5 {[%clk
0:04:36.1]} 12... Bxe2 {[%clk 0:03:51.8]} 13. Nxd7 {[%clk 0:04:33.3]} 13... Qxd7
{[%clk 0:03:47.3]} 14. Kxe2 {[%clk 0:04:32]} 14... O-O-O {[%clk 0:03:46.7]} 15.
Rhd1 {[%clk 0:04:23.1]} 15... Rhg8 {[%clk 0:03:42]} 16. Kf1 {[%clk 0:04:21.9]}
16... f5 {[%clk 0:03:41.4]} 17. c4 {[%clk 0:04:17]} 17... f4 {[%clk 0:03:30.3]}
18. Bd2 {[%clk 0:04:10.8]} 18... Bc7 {[%clk 0:03:16.5]} 19. Bc3 {[%clk
0:04:07.4]} 19... Qe7 {[%clk 0:03:15.2]} 20. d5 {[%clk 0:04:05.1]} 20... exd5
{[%clk 0:03:08.2]} 21. cxd5 {[%clk 0:04:03.8]} 21... Qg5 {[%clk 0:03:07]} 22.
dxc6 {[%clk 0:03:52.1]} 22... Qxg2+ {[%clk 0:03:04.6]} 23. Ke1 {[%clk
0:03:51.1]} 23... Rge8+ {[%clk 0:03:02.9]} 0-1

[Event "Live Chess"]
[Site "Chess.com"]
[Date "2023.05.21"]
[Round "-"]
[White "diana21strabt"]
[Black "Olisingapore"]
[Result "0-1"]
[WhiteElo "1751"]
[BlackElo "1783"]
[TimeControl "300"]
[EndTime "5:51:48 PDT"]
[Termination "Olisingapore won by checkmate"]

1. e4 {[%clk 0:04:58.7]} 1... c5 {[%clk 0:04:58.6]} 2. Nf3 {[%clk 0:04:57.6]}
2... d6 {[%clk 0:04:58.2]} 3. d4 {[%clk 0:04:56.7]} 3... cxd4 {[%clk 0:04:57.1]}
4. Nxd4 {[%clk 0:04:55.7]} 4... Nf6 {[%clk 0:04:56.8]} 5. Nc3 {[%clk 0:04:54.7]}
5... a6 {[%clk 0:04:56.3]} 6. Bg5 {[%clk 0:04:53]} 6... e6 {[%clk 0:04:55.4]} 7.
f4 {[%clk 0:04:51.9]} 7... Be7 {[%clk 0:04:54.4]} 8. Qf3 {[%clk 0:04:50.1]} 8...
Qc7 {[%clk 0:04:53.1]} 9. O-O-O {[%clk 0:04:46.1]} 9... Nbd7 {[%clk 0:04:52.4]}
10. g4 {[%clk 0:04:44.8]} 10... h6 {[%clk 0:04:48.8]} 11. Bxf6 {[%clk
0:04:43.6]} 11... Bxf6 {[%clk 0:04:48.2]} 12. Ndb5 {[%clk 0:04:33.2]} 12... axb5
{[%clk 0:04:35.4]} 13. Nxb5 {[%clk 0:04:31.9]} 13... Qb6 {[%clk 0:04:32.6]} 14.
Nxd6+ {[%clk 0:04:30.1]} 14... Kf8 {[%clk 0:04:30.1]} 15. e5 {[%clk 0:04:27.6]}
15... Rxa2 {[%clk 0:04:26]} 16. Nxc8 {[%clk 0:04:07.4]} 16... Qxb2+ {[%clk
0:04:21.1]} 17. Kd2 {[%clk 0:04:03.9]} 17... Qxc2+ {[%clk 0:04:20.3]} 18. Ke1
{[%clk 0:03:54.6]} 18... Bh4+ {[%clk 0:04:16.8]} 19. Qg3 {[%clk 0:03:50]} 19...
Qf2+ {[%clk 0:04:02.2]} 20. Qxf2 {[%clk 0:03:48.7]} 20... Bxf2# {[%clk
0:04:01.8]} 0-1

[Event "Live Chess"]
[Site "Chess.com"]
[Date "2023.05.21"]
[Round "-"]
[White "risinghelios"]
[Black "romchyk1219"]
[Result "1-0"]
[WhiteElo "1895"]
[BlackElo "646"]
[TimeControl "300"]
[EndTime "5:51:58 PDT"]
[Termination "risinghelios won by resignation"]

1. e4 {[%clk 0:04:59.6]} 1... d6 {[%clk 0:04:58.1]} 2. Bc4 {[%clk 0:04:59]} 2...
Nf6 {[%clk 0:04:56.4]} 3. d3 {[%clk 0:04:57.8]} 3... g6 {[%clk 0:04:55.6]} 4.
Nf3 {[%clk 0:04:47.8]} 4... Bg7 {[%clk 0:04:54.4]} 5. Ng5 {[%clk 0:04:46.1]}
5... O-O {[%clk 0:04:42.2]} 6. h4 {[%clk 0:04:34.9]} 6... e5 {[%clk 0:04:34.6]}
7. h5 {[%clk 0:04:11]} 7... gxh5 {[%clk 0:04:32.2]} 8. Rxh5 {[%clk 0:04:08.6]}
8... Re8 {[%clk 0:04:30.3]} 9. Bxf7+ {[%clk 0:04:06.5]} 9... Kf8 {[%clk
0:04:29]} 10. Bb3 {[%clk 0:04:05.1]} 10... Be6 {[%clk 0:04:22.8]} 11. Nxe6+
{[%clk 0:03:53.8]} 11... Ke7 {[%clk 0:04:18.8]} 12. Nxd8 {[%clk 0:03:53]} 12...
Nxh5 {[%clk 0:04:17.8]} 13. Bg5+ {[%clk 0:03:44.4]} 13... Nf6 {[%clk 0:04:14.4]}
1-0

[Event "Live Chess"]
[Site "Chess.com"]
[Date "2023.05.21"]
[Round "-"]
[White "CrypticF1"]
[Black "LordBenin"]
[Result "1-0"]
[WhiteElo "476"]
[BlackElo "1369"]
[TimeControl "300"]
[EndTime "5:52:02 PDT"]
[Termination "CrypticF1 won by checkmate"]

1. e4 {[%clk 0:04:55.2]} 1... c6 {[%clk 0:04:58.6]} 2. Nf3 {[%clk 0:04:54.2]}
2... d5 {[%clk 0:04:57.4]} 3. exd5 {[%clk 0:04:52]} 3... cxd5 {[%clk 0:04:56.3]}
4. d4 {[%clk 0:04:50.7]} 4... Nf6 {[%clk 0:04:53.1]} 5. Nc3 {[%clk 0:04:48.4]}
5... Bg4 {[%clk 0:04:47.8]} 6. Be2 {[%clk 0:04:43.3]} 6... e6 {[%clk 0:04:45.7]}
7. Bg5 {[%clk 0:04:39.6]} 7... Be7 {[%clk 0:04:43.6]} 8. Bxf6 {[%clk 0:04:37.6]}
8... Bxf6 {[%clk 0:04:41.7]} 9. h3 {[%clk 0:04:31.7]} 9... Bh5 {[%clk
0:04:36.4]} 10. g4 {[%clk 0:04:29.7]} 10... Bg6 {[%clk 0:04:34.6]} 11. Bd3
{[%clk 0:04:16.6]} 11... Nc6 {[%clk 0:04:30.6]} 12. Bxg6 {[%clk 0:04:13.1]}
12... hxg6 {[%clk 0:04:29.5]} 13. Qd2 {[%clk 0:03:58.3]} 13... a6 {[%clk
0:04:18.5]} 14. g5 {[%clk 0:03:57.1]} 14... Be7 {[%clk 0:04:14.6]} 15. O-O-O
{[%clk 0:03:52.1]} 15... O-O {[%clk 0:03:58]} 16. h4 {[%clk 0:03:43]} 16... b5
{[%clk 0:03:50.1]} 17. h5 {[%clk 0:03:40.1]} 17... gxh5 {[%clk 0:03:41.9]} 18.
Rxh5 {[%clk 0:03:37.2]} 18... g6 {[%clk 0:03:40.7]} 19. Rh6 {[%clk 0:03:33.5]}
19... Kg7 {[%clk 0:03:37.4]} 20. Rdh1 {[%clk 0:03:32.1]} 20... Nxd4 {[%clk
0:03:09.1]} 21. Qxd4+ {[%clk 0:03:28.9]} 21... f6 {[%clk 0:03:00.7]} 22. gxf6+
{[%clk 0:03:22.6]} 22... Bxf6 {[%clk 0:02:59.4]} 23. Ne5 {[%clk 0:03:15.3]}
23... Rc8 {[%clk 0:02:39.3]} 24. Rxg6# {[%clk 0:03:14.3]} 1-0

[Event "Live Chess"]
[Site "Chess.com"]
[Date "2023.05.21"]
[Round "-"]
[White "Biranidun"]
[Black "luckywookie"]
[Result "1-0"]
[WhiteElo "2524"]
[BlackElo "805"]
[TimeControl "300"]
[EndTime "5:52:17 PDT"]
[Termination "Biranidun won by checkmate"]

1. e4 {[%clk 0:04:59.4]} 1... c6 {[%clk 0:04:57.4]} 2. d4 {[%clk 0:04:58.5]}
2... d6 {[%clk 0:04:55.9]} 3. Nf3 {[%clk 0:04:56.6]} 3... c5 {[%clk 0:04:55.1]}
4. Bd3 {[%clk 0:04:56.5]} 4... cxd4 {[%clk 0:04:53.4]} 5. Nxd4 {[%clk
0:04:55.9]} 5... Nc6 {[%clk 0:04:50.7]} 6. Nb3 {[%clk 0:04:53.4]} 6... e5 {[%clk
0:04:48.8]} 7. Nc3 {[%clk 0:04:52.8]} 7... Nf6 {[%clk 0:04:43.5]} 8. Bg5 {[%clk
0:04:51.8]} 8... Be7 {[%clk 0:04:41.9]} 9. O-O {[%clk 0:04:50]} 9... O-O {[%clk
0:04:40.8]} 10. Bxf6 {[%clk 0:04:49.1]} 10... Bxf6 {[%clk 0:04:39.4]} 11. Nd5
{[%clk 0:04:49]} 11... Be6 {[%clk 0:04:32.7]} 12. Be2 {[%clk 0:04:45.3]} 12...
Nd4 {[%clk 0:04:29.6]} 13. Nxd4 {[%clk 0:04:43.7]} 13... exd4 {[%clk 0:04:28.6]}
14. Nxf6+ {[%clk 0:04:42.1]} 14... gxf6 {[%clk 0:04:26.6]} 15. Qd2 {[%clk
0:04:42]} 15... Kh8 {[%clk 0:04:23.6]} 16. Qxd4 {[%clk 0:04:41.2]} 16... Rg8
{[%clk 0:04:20.6]} 17. Kh1 {[%clk 0:04:37.5]} 17... Qf8 {[%clk 0:04:11.5]} 18.
Qxf6+ {[%clk 0:04:36.1]} 18... Qg7 {[%clk 0:04:10.1]} 19. Qxg7+ {[%clk
0:04:35.3]} 19... Rxg7 {[%clk 0:04:09.1]} 20. Rad1 {[%clk 0:04:35.2]} 20... Rd8
{[%clk 0:04:06.5]} 21. Rd4 {[%clk 0:04:34]} 21... f6 {[%clk 0:03:57.9]} 22. Rfd1
{[%clk 0:04:32.3]} 22... h6 {[%clk 0:03:23.8]} 23. Rxd6 {[%clk 0:04:29.7]} 23...
Rxd6 {[%clk 0:03:22.2]} 24. Rxd6 {[%clk 0:04:29.6]} 24... Kh7 {[%clk 0:03:18.2]}
25. Rxe6 {[%clk 0:04:28.4]} 25... Rd7 {[%clk 0:03:13.8]} 26. Bd3 {[%clk
0:04:24.7]} 26... Kg7 {[%clk 0:03:10]} 27. h3 {[%clk 0:04:22.9]} 27... Kf7
{[%clk 0:03:09]} 28. Bc4 {[%clk 0:04:19.9]} 28... Kg7 {[%clk 0:03:01.7]} 29. e5
{[%clk 0:04:18.7]} 29... fxe5 {[%clk 0:03:00.2]} 30. Rxe5 {[%clk 0:04:17.3]}
30... Rd2 {[%clk 0:02:52.8]} 31. Bd3 {[%clk 0:04:15.7]} 31... Rxf2 {[%clk
0:02:51.1]} 32. Re7+ {[%clk 0:04:14.8]} 32... Kf6 {[%clk 0:02:49.6]} 33. Rxb7
{[%clk 0:04:14.7]} 33... Ke5 {[%clk 0:02:45.6]} 34. Rxa7 {[%clk 0:04:13.9]}
34... Kf4 {[%clk 0:02:44.5]} 35. Rf7+ {[%clk 0:04:13.1]} 35... Ke3 {[%clk
0:02:41.7]} 36. Rxf2 {[%clk 0:04:13]} 36... Kxf2 {[%clk 0:02:41]} 37. a4 {[%clk
0:04:12.9]} 37... Ke3 {[%clk 0:02:39.3]} 38. a5 {[%clk 0:04:12.8]} 38... Kf4
{[%clk 0:02:37.6]} 39. a6 {[%clk 0:04:12.7]} 39... h5 {[%clk 0:02:35.2]} 40. a7
{[%clk 0:04:12.6]} 40... h4 {[%clk 0:02:34.4]} 41. a8=Q {[%clk 0:04:12]} 41...
Ke3 {[%clk 0:02:33.7]} 42. Qe4+ {[%clk 0:04:09.7]} 42... Kd2 {[%clk 0:02:33.2]}
43. Qe2+ {[%clk 0:04:04.3]} 43... Kc1 {[%clk 0:02:32.3]} 44. b4 {[%clk
0:04:00.1]} 44... Kb2 {[%clk 0:02:31]} 45. b5 {[%clk 0:03:59.6]} 45... Ka3
{[%clk 0:02:28.2]} 46. b6 {[%clk 0:03:57]} 46... Kb4 {[%clk 0:02:26.7]} 47. b7
{[%clk 0:03:56.3]} 47... Ka5 {[%clk 0:02:25.1]} 48. b8=Q {[%clk 0:03:54.4]}
48... Ka4 {[%clk 0:02:22.1]} 49. Qb5+ {[%clk 0:03:50.2]} 49... Ka3 {[%clk
0:02:21.2]} 50. Qb3# {[%clk 0:03:50.1]} 1-0

[Event "Live Chess"]
[Site "Chess.com"]
[Date "2023.05.21"]
[Round "-"]
[White "chessfiction"]
[Black "SupremeTactician"]
[Result "1-0"]
[WhiteElo "2310"]
[BlackElo "2241"]
[TimeControl "300"]
[EndTime "5:52:25 PDT"]
[Termination "chessfiction won by checkmate"]

1. e4 {[%clk 0:04:59.3]} 1... e5 {[%clk 0:04:57.2]} 2. Nf3 {[%clk 0:04:57.9]}
2... Nc6 {[%clk 0:04:56.3]} 3. Bb5 {[%clk 0:04:57.3]} 3... a6 {[%clk 0:04:55]}
4. Ba4 {[%clk 0:04:56.2]} 4... Nf6 {[%clk 0:04:53.9]} 5. d3 {[%clk 0:04:55.6]}
5... Bc5 {[%clk 0:04:51.6]} 6. c3 {[%clk 0:04:54.5]} 6... d6 {[%clk 0:04:46.9]}
7. O-O {[%clk 0:04:53.4]} 7... O-O {[%clk 0:04:44.1]} 8. h3 {[%clk 0:04:51.9]}
8... b5 {[%clk 0:04:39.1]} 9. Bc2 {[%clk 0:04:49.9]} 9... Bb6 {[%clk 0:04:36.7]}
10. Qe2 {[%clk 0:04:48.1]} 10... h6 {[%clk 0:04:32.1]} 11. Nbd2 {[%clk
0:04:45.6]} 11... Nh5 {[%clk 0:04:20.9]} 12. Nb3 {[%clk 0:04:25.2]} 12... Re8
{[%clk 0:04:14.7]} 13. Be3 {[%clk 0:04:23.9]} 13... Nf4 {[%clk 0:04:09.4]} 14.
Bxf4 {[%clk 0:04:22.8]} 14... exf4 {[%clk 0:04:09.3]} 15. Qd2 {[%clk 0:04:18]}
15... g5 {[%clk 0:04:06.3]} 16. Nbd4 {[%clk 0:04:14.2]} 16... Nxd4 {[%clk
0:04:04.1]} 17. Nxd4 {[%clk 0:04:14.1]} 17... Bxd4 {[%clk 0:04:02.4]} 18. cxd4
{[%clk 0:04:14]} 18... Qf6 {[%clk 0:04:00.2]} 19. Qc3 {[%clk 0:04:10.1]} 19...
f3 {[%clk 0:03:57]} 20. Qc6 {[%clk 0:04:02.9]} 20... Be6 {[%clk 0:03:24.1]} 21.
d5 {[%clk 0:03:38.3]} 21... Bxh3 {[%clk 0:03:22.5]} 22. gxh3 {[%clk 0:03:35.8]}
22... g4 {[%clk 0:03:20.3]} 23. Qd7 {[%clk 0:03:31.1]} 23... h5 {[%clk
0:03:13.9]} 24. Qf5 {[%clk 0:03:23.3]} 24... Qh4 {[%clk 0:03:08.6]} 25. Qf4
{[%clk 0:03:11.8]} 25... Re5 {[%clk 0:03:03.6]} 26. Qg3 {[%clk 0:03:04.8]} 26...
Qg5 {[%clk 0:02:56.3]} 27. h4 {[%clk 0:03:04.1]} 27... Qd2 {[%clk 0:02:49.5]}
28. Rac1 {[%clk 0:03:00.8]} 28... f5 {[%clk 0:02:44.9]} 29. Rfd1 {[%clk
0:02:58.1]} 29... Qh6 {[%clk 0:02:40.5]} 30. d4 {[%clk 0:02:56.5]} 30... f4
{[%clk 0:02:30.2]} 31. Qh2 {[%clk 0:02:49.5]} 31... Re7 {[%clk 0:02:26.7]} 32.
Kh1 {[%clk 0:02:45.3]} 32... Rg7 {[%clk 0:02:24]} 33. Rg1 {[%clk 0:02:43.9]}
33... Rf8 {[%clk 0:02:20.2]} 34. Rce1 {[%clk 0:02:36]} 34... g3 {[%clk
0:01:58.8]} 35. fxg3 {[%clk 0:02:30.7]} 35... f2 {[%clk 0:01:20.9]} 36. Qxf2
{[%clk 0:02:24.7]} 36... fxg3 {[%clk 0:01:19.2]} 37. Qe3 {[%clk 0:02:13.3]}
37... Qf6 {[%clk 0:01:08.5]} 38. Rxg3 {[%clk 0:02:00.7]} 38... Qxh4+ {[%clk
0:01:06.8]} 39. Kg2 {[%clk 0:01:49.5]} 39... Rf7 {[%clk 0:00:48]} 40. Rh1 {[%clk
0:01:42.7]} 40... Qe7 {[%clk 0:00:44.9]} 41. Rh3 {[%clk 0:01:28.8]} 41... h4
{[%clk 0:00:42.8]} 42. Rxg7+ {[%clk 0:01:22.2]} 42... Rxg7+ {[%clk 0:00:42.4]}
43. Kh2 {[%clk 0:01:10.2]} 43... Qf6 {[%clk 0:00:40.9]} 44. Rf3 {[%clk
0:00:54.9]} 44... Qg6 {[%clk 0:00:38.4]} 45. Qf2 {[%clk 0:00:53.6]} 45... Qg4
{[%clk 0:00:30.8]} 46. Rf8+ {[%clk 0:00:50.6]} 46... Kh7 {[%clk 0:00:28.7]} 47.
e5+ {[%clk 0:00:47.1]} 47... Kh6 {[%clk 0:00:27]} 48. Rh8+ {[%clk 0:00:41.3]}
48... Kg5 {[%clk 0:00:25.5]} 49. Qf6# {[%clk 0:00:40.2]} 1-0

[Event "Live Chess"]
[Site "Chess.com"]
[Date "2023.05.21"]
[Round "-"]
[White "mattihelenius2"]
[Black "NotHarryV"]
[Result "0-1"]
[WhiteElo "491"]
[BlackElo "1505"]
[TimeControl "300"]
[EndTime "5:52:33 PDT"]
[Termination "NotHarryV won by resignation"]

1. d4 {[%clk 0:04:57.4]} 1... Nf6 {[%clk 0:04:58.9]} 2. Nd2 {[%clk 0:04:52.9]}
2... e6 {[%clk 0:04:55]} 3. Ngf3 {[%clk 0:04:51.6]} 3... d5 {[%clk 0:04:53.2]}
4. e3 {[%clk 0:04:50.5]} 4... c5 {[%clk 0:04:49.7]} 5. c3 {[%clk 0:04:44.9]}
5... Nc6 {[%clk 0:04:46.3]} 6. Bd3 {[%clk 0:04:43.5]} 6... Be7 {[%clk
0:04:36.8]} 7. Nb3 {[%clk 0:04:37.3]} 7... c4 {[%clk 0:04:35.3]} 8. Nc5 {[%clk
0:04:32.9]} 8... cxd3 {[%clk 0:04:30]} 9. Qxd3 {[%clk 0:04:30.2]} 9... Bxc5
{[%clk 0:04:27.3]} 10. dxc5 {[%clk 0:04:28.3]} 10... e5 {[%clk 0:04:22.5]} 11.
Qe2 {[%clk 0:04:01.8]} 11... Bg4 {[%clk 0:04:16.2]} 12. h3 {[%clk 0:03:59.1]}
12... Bh5 {[%clk 0:04:15.4]} 13. Bd2 {[%clk 0:03:51.5]} 13... e4 {[%clk
0:04:13.9]} 14. g4 {[%clk 0:03:34.3]} 14... exf3 {[%clk 0:04:11.6]} 15. Qxf3
{[%clk 0:03:33.1]} 15... Bg6 {[%clk 0:04:07.2]} 16. Rd1 {[%clk 0:03:27.7]} 16...
Be4 {[%clk 0:04:05.6]} 17. Qf4 {[%clk 0:03:24.6]} 17... Bxh1 {[%clk 0:04:03.4]}
18. Ke2 {[%clk 0:03:24.1]} 18... Be4 {[%clk 0:03:59.1]} 19. f3 {[%clk
0:03:14.9]} 19... Bg6 {[%clk 0:03:52.2]} 20. e4 {[%clk 0:03:11.5]} 20... d4
{[%clk 0:03:44.5]} 21. Qe5+ {[%clk 0:03:04.5]} 21... Nxe5 {[%clk 0:03:43.4]} 0-1